Cogmind - Beta 9.6 @@@ ROGUE MODE // 2020.06.04 @ 21:51:24 Player: Ben'n'Dan Result: Self-destructed Performance ------------- Evolutions (2) 1000 Regions Visited (5) 1000 Robots Destroyed (0) 0 Value Destroyed (0) 0 Prototype IDs (3) 60 Alien Tech Used (0) 0 Bonus (470) 470 TOTAL SCORE: 2530 Bonus ------- Pacifist 470 Cogmind --------- Core Integrity 550/550 Matter 186/300 Energy 280/280 System Corruption 2% Temperature Cool (0) Movement Flying (32) Location -8/Storage Parts ------- > --- POWER (1) -------- Heavy Ion Engine > --- PROPULSION (4) --- Improved VTOL Module Improved VTOL Module > --- UTILITY (4) ------ Advanced Visual Processing Unit Hacking Suite > --- WEAPON (2) ------- Enhanced Autogun > --- INVENTORY (4) ---- Ion Engine Light Ion Engine Hardened Medium Armor Plating EM Pulse Gun Peak State ------------ > --- POWER ------------ Heavy Ion Engine > --- PROPULSION ------- VTOL Module Improved VTOL Module Improved VTOL Module > --- UTILITY ---------- Advanced Visual Processing Unit Hardened Medium Armor Plating Hacking Suite > --- WEAPON ----------- Small Laser > --- INVENTORY -------- Ion Engine Light Ion Engine EM Pulse Gun [Rating: 23] Favorites ----------- Power Heavy Ion Engine Engine Heavy Ion Engine Propulsion Improved VTOL Module Flight Unit Improved VTOL Module Utility Hardened Medium Armor Plating Processor Advanced Visual Processing Unit Hackware Hacking Suite Protection Hardened Medium Armor Plating Weapon Assault Rifle Energy Gun Small Laser Ballistic Gun Assault Rifle Build | -11 -10 -10 -9 -8 -8 ------- Run | Scr Mat Min Mat Mat Sto Slots Evolved 4 | . . . 2 2 . Power . | . . . . . . Propulsion 2 | . . . 1 1 . Utility 2 | . . . 1 1 . Weapon . | . . . . . . Parts Attached 14 | 2 . . 8 1 3 Power 3 | . . . 3 . . Engine 3 | . . . 3 . . Core . | . . . . . . Reactor . | . . . . . . Propulsion 3 | . . . 3 . . Treads . | . . . . . . Leg . | . . . . . . Wheel . | . . . . . . Hover . | . . . . . . Flight 3 | . . . 3 . . Utility 4 | . . . 2 . 2 Device . | . . . . . . Storage . | . . . . . . Processor 1 | . . . . . 1 Hackware 1 | . . . . . 1 Protection 2 | . . . 2 . . Artifact . | . . . . . . Weapon 4 | 2 . . . 1 1 Energy Gun 1 | . . . . 1 . Energy Cannon . | . . . . . . Ballistic Gun 3 | 2 . . . . 1 Ballistic Cannon . | . . . . . . Launcher . | . . . . . . Special Weapon . | . . . . . . Impact Weapon . | . . . . . . Slashing Weapon . | . . . . . . Piercing Weapon . | . . . . . . Special Melee Weapon . | . . . . . . Unidentified Prototypes 3 | . . . 2 . 1 Parts Lost 4 | . . . 2 . 2 Power . | . . . . . . Propulsion 1 | . . . . . 1 Utility . | . . . . . . Weapon 3 | . . . 2 . 1 Highest Loss Streak 2 | . . . 2 . 2 Average Slot Usage (%) 43 | . 28 . 37 54 59 Engine 7 | . . . 7 9 9 Flight 17 | . . . 16 27 25 Hackware 2 | . . . . . 9 Protection 6 | . . . 7 9 7 Energy Gun 2 | . . . . 9 5 Ballistic Gun 6 | . 28 . 7 . . Naked Turns . | . . . . . . Heaviest Build 17 | 3 3 3 16 17 17 Greatest Support 17 | 3 3 3 17 17 17 Greatest Overweight (x) 1 | . . . 1 . . Average Overweight (x) . | . . . . . . Largest Inventory Capacity 4 | 4 4 4 4 4 4 Average Capacity 4 | 4 4 4 4 4 4 Most Carried 4 | 3 3 3 4 3 4 Average Carried 2 | 2 3 3 2 2 3 Final Capacity 4 | 4 4 4 4 4 4 Final Carried 4 | 3 3 3 3 3 4 Class Distribution -------------------- 72% | Sprinter 27% | Mutant Dominant Class ---------------- Mutant | -10/Mines Sprinter | -9/Materials Sprinter | -8/Materials Sprinter | -8/Storage Resources | -11 -10 -10 -9 -8 -8 ----------- Run | Scr Mat Min Mat Mat Sto Matter Collected 206 | 206 . . . . . Remotely . | . . . . . . Salvage Created . | . . . . . . Parts . | . . . . . . Haulers Intercepted . | . . . . . . Recyclers Shooed . | . . . . . . Parts Field Recycled . | . . . . . . Retrieved Matter . | . . . . . . Parts Self-Destructed . | . . . . . . Prevented . | . . . . . . Kills | -11 -10 -10 -9 -8 -8 ------- Run | Scr Mat Min Mat Mat Sto Combat Hostiles Destroyed . | . . . . . . Classes Destroyed . | . . . . . . Best Kill Streak . | . . . . . . Combat Bots Only . | . . . . . . Max Kills in Single Turn . | . . . . . . Gunslinging . | . . . . . . Exploded . | . . . . . . Melee . | . . . . . . Uniques/NPCs Destroyed . | . . . . . . Combat | -11 -10 -10 -9 -8 -8 -------- Run | Scr Mat Min Mat Mat Sto Damage Taken 727 | . . 40 455 28 204 Core 138 | . . 8 130 . . Absorbed by Shields . | . . . . . . Core Remaining (%) 87 | 100 . 96 67 . . Volleys Fired . | . . . . . . Largest . | . . . . . . Hottest . | . . . . . . Shots Fired . | . . . . . . Gun . | . . . . . . Cannon . | . . . . . . Launcher . | . . . . . . Special . | . . . . . . Kinetic . | . . . . . . Thermal . | . . . . . . Explosive . | . . . . . . Electromagnetic . | . . . . . . Robot Hit Streak . | . . . . . . Robot Miss Streak . | . . . . . . Penetration Max . | . . . . . . Secondary Targets . | . . . . . . Shots Hit Robots . | . . . . . . Core Hits . | . . . . . . Critical Hits . | . . . . . . Critical Kills . | . . . . . . Critical Parts Destroyed . | . . . . . . Melee Attacks . | . . . . . . Impact . | . . . . . . Slashing . | . . . . . . Piercing . | . . . . . . Sneak Attacks . | . . . . . . Combat Hostiles . | . . . . . . Follow-up Attacks . | . . . . . . Damage Inflicted . | . . . . . . Guns . | . . . . . . Cannons . | . . . . . . Explosions . | . . . . . . Melee . | . . . . . . Ramming . | . . . . . . Kinetic . | . . . . . . Thermal . | . . . . . . Explosive . | . . . . . . Electromagnetic . | . . . . . . Impact . | . . . . . . Slashing . | . . . . . . Piercing . | . . . . . . Highest Corruption 2 | . . . . . 2 Average Corruption 2 | . . . . . 2 Corruption Purged . | . . . . . . Overload Shots . | . . . . . . Overflow Damage . | . . . . . . Projectiles . | . . . . . . Explosions . | . . . . . . Melee . | . . . . . . Knockbacks . | . . . . . . Impact . | . . . . . . Kinetic . | . . . . . . Secondary . | . . . . . . Self-Inflicted Damage . | . . . . . . Shots . | . . . . . . Rammed . | . . . . . . Targets Rammed . | . . . . . . Kicked . | . . . . . . Crushed . | . . . . . . Highest Temperature 22 | . . . 3 1 22 Average Temperature 9 | . . . 3 1 11 Received Heat Transfer 168 | . . . 78 18 72 Siege Activations . | . . . . . . Robots Corrupted . | . . . . . . Combat Hostiles . | . . . . . . Parts Fried . | . . . . . . Impact Corruptions . | . . . . . . Robots Melted . | . . . . . . Combat Hostiles . | . . . . . . Parts Melted . | . . . . . . Heat Transferred . | . . . . . . Parts Sabotaged . | . . . . . . Parts Stolen . | . . . . . . Parts Stripped . | . . . . . . Power Chain Reactions . | . . . . . . Missiles Intercepted . | . . . . . . Alert | -11 -10 -10 -9 -8 -8 ------- Run | Scr Mat Min Mat Mat Sto Peak Influence 100 | . . . 55 37 100 Average Influence 29 | . . . 24 26 59 Maximum Alert Level . | . . . . . . Low Security (%) 100 | 100 100 100 100 100 100 Level 1 . | . . . . . . Level 2 . | . . . . . . Level 3 . | . . . . . . Level 4 . | . . . . . . Level 5 . | . . . . . . High Security . | . . . . . . Max Security . | . . . . . . Squads Dispatched 2 | . . . 1 . 1 Investigation 1 | . . . . . 1 Extermination . | . . . . . . Reinforcement 1 | . . . 1 . . Assault . | . . . . . . Garrison . | . . . . . . Intercept . | . . . . . . Construction Impeded . | . . . . . . Haulers Reinforced . | . . . . . . Stealth | -11 -10 -10 -9 -8 -8 --------- Run | Scr Mat Min Mat Mat Sto Distress Signals . | . . . . . . Communications Jammed . | . . . . . . Distress Signals . | . . . . . . Times Spotted 34 | . . 3 19 1 11 Peak Tracking Total 13 | . . 3 11 1 13 Tactical Retreats 3 | . . . 3 . . Traps | -11 -10 -10 -9 -8 -8 ------- Run | Scr Mat Min Mat Mat Sto Traps Triggered 1 | . . . . . 1 Indirectly . | . . . . . . Trap Hack Attempts . | . . . . . . Triggered . | . . . . . . Disarmed . | . . . . . . Reprogrammed . | . . . . . . Reused . | . . . . . . Traps Extracted . | . . . . . . Installed . | . . . . . . Triggered . | . . . . . . Machines | -11 -10 -10 -9 -8 -8 ---------- Run | Scr Mat Min Mat Mat Sto Machines Disabled . | . . . . . . Max in Single Turn . | . . . . . . Machines Sabotaged . | . . . . . . Garrisons Compromised . | . . . . . . Overloaded Fab Kills . | . . . . . . Fab Network Shutdowns . | . . . . . . Hacking | -11 -10 -10 -9 -8 -8 --------- Run | Scr Mat Min Mat Mat Sto Machines Accessed 2 | . . . . . 2 Terminals 2 | . . . . . 2 Fabricators . | . . . . . . Repair Stations . | . . . . . . Recycling Units . | . . . . . . Scanalyzers . | . . . . . . Garrison Access . | . . . . . . Total Hacks 5 | . . . . . 5 Successful 1 | . . . . . 1 Failed 4 | . . . . . 4 Catastrophic 4 | . . . . . 4 Database Lockouts . | . . . . . . Manual 4 | . . . . . 4 Terminals 5 | . . . . . 5 Fabricators . | . . . . . . Repair Stations . | . . . . . . Recycling Units . | . . . . . . Scanalyzers . | . . . . . . Garrison Access . | . . . . . . Terminal Hacks 1 | . . . . . 1 Terminal Index 1 | . . . . . 1 Fabricator Hacks . | . . . . . . Repair Station Hacks . | . . . . . . Recycling Unit Hacks . | . . . . . . Scanalyzer . | . . . . . . Garrison Access Hacks . | . . . . . . Unauthorized Hacks . | . . . . . . Terminals . | . . . . . . Fabricators . | . . . . . . Repair Stations . | . . . . . . Recycling Units . | . . . . . . Scanalyzers . | . . . . . . Garrison Access . | . . . . . . Data Cores Recovered . | . . . . . . Used . | . . . . . . Hacking Detections 2 | . . . . . 2 Full Trace Events 2 | . . . . . 2 Feedback Events . | . . . . . . Feedback Blocked . | . . . . . . Robot Schematics Acquired . | . . . . . . Robots Built . | . . . . . . Matter . | . . . . . . Time . | . . . . . . Total Robot Build Rating . | . . . . . . Part Schematics Acquired . | . . . . . . Parts Built . | . . . . . . Matter . | . . . . . . Time . | . . . . . . Total Part Build Rating . | . . . . . . Parts Repaired . | . . . . . . Time . | . . . . . . Parts Recycled . | . . . . . . Recycled Matter . | . . . . . . Retrieved Matter . | . . . . . . Retrieved Components . | . . . . . . Parts Scanalyzed . | . . . . . . Part Schematics Acquired . | . . . . . . Parts Damaged . | . . . . . . Bothacking | -11 -10 -10 -9 -8 -8 ------------ Run | Scr Mat Min Mat Mat Sto Used RIF Installer . | . . . . . . Robots Hacked . | . . . . . . Non-combat . | . . . . . . Combat . | . . . . . . Robot Hacks Applied . | . . . . . . Relay Couplers Released . | . . . . . . Robots Rewired . | . . . . . . Allies Hacked . | . . . . . . Hacks Repelled . | . . . . . . Allies | -11 -10 -10 -9 -8 -8 -------- Run | Scr Mat Min Mat Mat Sto Total Allies . | . . . . . . Largest Group . | . . . . . . Highest-Rated Group . | . . . . . . Highest-Rated Ally . | . . . . . . Total Orders . | . . . . . . Ally Attacks . | . . . . . . Total Damage . | . . . . . . Kills . | . . . . . . Allies Corrupted . | . . . . . . Allies Melted . | . . . . . . Intel | -11 -10 -10 -9 -8 -8 ------- Run | Scr Mat Min Mat Mat Sto Robot Analysis Total . | . . . . . . Derelict Logs Recovered . | . . . . . . Drone Launches . | . . . . . . Drone Recoveries . | . . . . . . Exploration | -11 -10 -10 -9 -8 -8 ------------- Run | Scr Mat Min Mat Mat Sto Turns Passed 214 | 18 11 4 107 22 52 Spaces Moved 514 | 24 22 8 251 60 149 Core 125 | 24 22 8 71 . . Treads . | . . . . . . Legs . | . . . . . . Wheels . | . . . . . . Hover . | . . . . . . Flight 389 | . . . 180 60 149 Fastest Speed 30 | 50 50 50 30 30 30 Average Speed 35 | 50 50 50 37 30 30 Slowest Speed 105 | 50 50 50 105 30 32 Overloaded Moves . | . . . . . . Propulsion Burnouts . | . . . . . . Robots Hopped 12 | . . . 6 3 3 Cave-ins Triggered . | . . . . . . Exploration Rate (%) 21 | 3 10 7 45 13 52 Regions Visited 5 Branch Regions 2 Pre-discovered Areas 1 | . . 1 . . . Known Exits Taken . | . . . . . . Unknown Exits Taken 5 | 1 1 1 1 1 . Scrap Searched . | . . . . . . Spaces Dug . | . . . . . . Terrain Destroyed . | . . . . . . Melee . | . . . . . . Projectile . | . . . . . . AOE . | . . . . . . Actions | -11 -10 -10 -9 -8 -8 --------- Run | Scr Mat Min Mat Mat Sto Total 523 | 28 21 7 256 60 151 Wait 5 | . . . 2 2 1 Move 485 | 23 21 7 238 53 143 Hop 12 | . . . 6 3 3 Pick Up 4 | 3 . . . 1 . Fast Attach 10 | 2 . . 5 . 3 Attach 3 | . . . 2 1 . Detach 3 | . . . 2 . 1 Swap 1 | . . . 1 . . Drop . | . . . . . . Fire . | . . . . . . Melee . | . . . . . . Ram . | . . . . . . Kick . | . . . . . . Crush . | . . . . . . Escape Stasis . | . . . . . . Rewire . | . . . . . . Trap . | . . . . . . Miscellaneous . | . . . . . . Route ------- -11/Scrapyard -10/Materials -10/Mines -9/Materials (discovered 2 exits: [*Mat] / [*Min]) -8/Materials -8/Storage History --------- Turn | Location | Event 6 | -11/Scrapyard | Discovered new exit (range 16) 19 | -11/Scrapyard | Entered Materials 23 | -10/Materials | Discovered new exit (range 16) 30 | -10/Materials | Entered Mines 30 | -10/Mines | Discovered new exit (range 8) 31 | -10/Mines | Learned location of Storage (-8) 34 | -10/Mines | Entered Materials 34 | -9/Materials | Evolved 2 slots: Propulsion x1, Utility x1 99 | -9/Materials | Discovered new exit (range 15) 137 | -9/Materials | Discovered new exit (range 15) 141 | -9/Materials | Entered another Materials area 141 | -8/Materials | Evolved 2 slots: Propulsion x1, Utility x1 156 | -8/Materials | Discovered new exit (range 16) 163 | -8/Materials | Entered Storage 215 | -8/Storage | Self-destructed Last Messages --------------- 00177_ ALERT: Suspicious activity at Terminal S003. Dispatching Investigation squad. 00179_ Slug penetrates Wall. 00180_ K-01 Serf collects debris. 00181_ K-01 Serf cleans the Terminal. 00181_ Connecting with Terminal... >>Index(Terminals) Found 15 terminals. Downloaded coordinate data. 00184_ Triggered Shock Trap. 00184_ The floor emits a surge of raw power. 00184_ System corrupted (+2). 00184_ K-01 Serf cleans the Terminal. 00184_ K-01 Serf collects debris. 00191_ Acquired Adv. Visual Processing Unit. 00197_ Sml. Laser destroyed. 00204_ VTOL Module destroyed. 00211_ Acquired Prototype Ballistic Gun. 00211_ Identified Enh. Autogun. 00215_ Connecting with Terminal... Map ----- +----------------------------------------------------+ | ???????? ## | | ???????? | | ????????######### #####/##+################# | | ????????????????# #??# ???????????????? | | ????????????????# #??# ???????????????? | | ????????????????# #??#""" R?????????????? | | ????????????????# ???#""" """#???????????? | | ????????????????# ???#""" ####???????????? | | ????????????????# ###???# #??????????????? | | ????????????????# ??????# ######??????????????# | | ????????????????? ##+??????##?# #??????????????+ | | ??????????????????????????????# #??????????????# | | ??????????????????????????????# #??????????????# | | ??????????????????????????????# #??????????????? | | ??????????????????????????????# #??????????????? | | ??????????????????????????????# +??????????????? | | ??????????????????????????????# #??????????????? | | ????????????###???????????????# #??????????????? | | ????????????#"""??????????????# #??????????????? | | ?????????####"Y"####?????????## ##????????###### | | ?????????# ########### ########## | | ?????????# # | | ?????????# ] + | | ?????????# """"# | | ????????# """"#####+##### ########## | | ????????## """"#??# @T#?#####+#????????###+## | | ?????????# ] """"#??#" "##????? ????????? | | ?????????# #??#[ [#?????? ??????? "" | | ?????????###" "#####??#[[[#?????#" "#????"Y "" | | ???????????#"G"???????#####??????= =????#"" "" | | ?????????????????????????????????= =????### | | ?????????????????????????????????= =??????# "" | | ?????????????????????????????????= =??????# "" | | ?????????????????????????????????###??????# "" | | ??????????????????????????????????????????# | | ??????????????????????????????????????????##"T"#T# | | ???????????????????????????????????????????####?#? | | ?????????????????????????????????????????????????? | | ?????????????????????????????????????????????????? | | ?????????????????????????????????????????????????? | | ?????????????????????????????????????????????????? | | ?????????????????????????????????????????????????? | | ?????????????????????????????????????????????????? | | ?????????????????????????????????????????????????? | | ?????????????????????????????????????????????????? | | ?????????????????????????????????????????????????? | | ?????????????????????????????????????????????????? | | ?????????????????????????????????????????????????? | | | | | +----------------------------------------------------+ Best States ------------- Heat Dissipation 31 Energy Generation 14 Energy Capacity 280 Matter Stores 291 Matter Capacity 300 Sight Range 20 Terrain Scan Density 10 Armor Coverage 225 Evasion (%) 64 Offensive Hacking 10 Item Schematics ----------------- None Robot Schematics ------------------ None Fabricated ------------ Nothing Alien Tech Used ----------------- None Achievements -------------- None Challenges ------------ None Game ------ Seed SurveybotDerelictRouter Manual? 0 Play Time 00:06:02 Cumulative 117.3 hours Start 2020.06.04 @ 21:46:46 End 2020.06.04 @ 21:51:24 Sessions 1 Manual Loads 0 Difficulty Rogue Special Mode None Game No. 260 Rogue 252 Adventurer 8 Explorer 0 Win Type - Total 7 Types 4/0/2/1/0/0/0 Lore% 76 Gallery% 78 Achievement% 58 Wizard Run 0 Options --------- ASCII 0 Keyboard 0 Movement Numpad Keybinds 0 Fullscreen 1 Font 12/Smallcaps Map View 83x54 Tactical HUD 1 Map Filters NONE Filters NONE Steam 1 RUN: 5f63488d-6e7e-48dc-ac69-386d4dc56488